[Event "*** Titled Tuesday 3|2 Blitz"]
[Site "Chess.com"]
[Date "2015.11.03"]
[Round "2"]
[White "sorito"]
[Black "Matibar"]
[Result "0-1"]
[WhiteElo "2044"]
[BlackElo "1968"]
[TimeControl "180+2"]
[EndTime "11:23:46 PST"]
[Termination "Matibar won by resignation"]

1. d4 {[%clk 0:02:59.3]} 1... e6 {[%clk 0:02:59.4]} 2. c4 {[%clk 0:02:59.3]}
2... Bb4+ {[%clk 0:02:59.9]} 3. Bd2 {[%clk 0:02:58.6]} 3... c5 {[%clk 0:02:57]}
4. Nf3 {[%clk 0:02:58.5]} 4... Nf6 {[%clk 0:02:55.6]} 5. Nc3 {[%clk 0:02:57.7]}
5... cxd4 {[%clk 0:02:43.6]} 6. Nxd4 {[%clk 0:02:57.1]} 6... Nc6 {[%clk
0:02:44.1]} 7. e3 {[%clk 0:02:52.4]} 7... O-O {[%clk 0:02:38.9]} 8. Be2 {[%clk
0:02:34.2]} 8... Nxd4 {[%clk 0:01:59]} 9. exd4 {[%clk 0:02:33.7]} 9... d5 {[%clk
0:02:00.9]} 10. c5 {[%clk 0:02:32.6]} 10... b6 {[%clk 0:02:00.8]} 11. a3 {[%clk
0:02:31]} 11... Bxc3 {[%clk 0:02:01.4]} 12. Bxc3 {[%clk 0:02:32.5]} 12... Ne4
{[%clk 0:02:02.5]} 13. Rc1 {[%clk 0:02:10.9]} 13... Bd7 {[%clk 0:01:31.1]} 14.
O-O {[%clk 0:02:02.5]} 14... Rc8 {[%clk 0:01:30.9]} 15. b4 {[%clk 0:02:02]}
15... Qe8 {[%clk 0:01:14.4]} 16. Bb2 {[%clk 0:02:00.7]} 16... Bb5 {[%clk
0:01:15.3]} 17. f3 {[%clk 0:02:01]} 17... Nf6 {[%clk 0:01:09]} 18. Re1 {[%clk
0:02:00.9]} 18... Qd7 {[%clk 0:01:04.8]} 19. Bd3 {[%clk 0:02:01.7]} 19... Rc7
{[%clk 0:01:00.2]} 20. Qe2 {[%clk 0:01:58.3]} 20... Bxd3 {[%clk 0:01:00.3]} 21.
Qxd3 {[%clk 0:01:59.6]} 21... Rfc8 {[%clk 0:01:02]} 22. g4 {[%clk 0:01:55.7]}
22... Qa4 {[%clk 0:01:02.4]} 23. h3 {[%clk 0:01:55.3]} 23... Nd7 {[%clk
0:00:58]} 24. Qc2 {[%clk 0:01:38.5]} 24... Qb5 {[%clk 0:00:53.3]} 25. Qc3 {[%clk
0:01:39.4]} 25... a5 {[%clk 0:00:53.3]} 26. Re3 {[%clk 0:01:35.9]} 26... a4
{[%clk 0:00:50.9]} 27. Qd3 {[%clk 0:01:35.6]} 27... Qxd3 {[%clk 0:00:51.3]} 28.
Rxd3 {[%clk 0:01:36.7]} 28... b5 {[%clk 0:00:49.4]} 29. Re3 {[%clk 0:01:38]}
29... Nb8 {[%clk 0:00:47.7]} 30. Rce1 {[%clk 0:01:38.8]} 30... Nc6 {[%clk
0:00:48.8]} 31. f4 {[%clk 0:01:40.4]} 31... g6 {[%clk 0:00:49.4]} 32. Rf3 {[%clk
0:01:38.9]} 32... Re7 {[%clk 0:00:49.1]} 33. Kf2 {[%clk 0:01:40.1]} 33... f6
{[%clk 0:00:49.3]} 34. Rfe3 {[%clk 0:01:41.1]} 34... Kf7 {[%clk 0:00:50.2]} 35.
Ke2 {[%clk 0:01:42.1]} 35... Rh8 {[%clk 0:00:50.2]} 36. Rf1 {[%clk 0:01:41]}
36... Ke8 {[%clk 0:00:49.1]} 37. Kd3 {[%clk 0:01:41.9]} 37... Kd7 {[%clk
0:00:50.1]} 38. Bc1 {[%clk 0:01:40.4]} 38... Rf7 {[%clk 0:00:48.6]} 39. Rg3
{[%clk 0:01:41.2]} 39... Re8 {[%clk 0:00:48.4]} 40. h4 {[%clk 0:01:41.3]} 40...
Ree7 {[%clk 0:00:49]} 41. h5 {[%clk 0:01:37.7]} 41... e5 {[%clk 0:00:50.3]} 42.
fxe5 {[%clk 0:01:35.4]} 42... fxe5 {[%clk 0:00:51.3]} 43. Rxf7 {[%clk
0:01:36.2]} 43... e4+ {[%clk 0:00:52.5]} 44. Ke2 {[%clk 0:01:13.8]} 44... Rxf7
{[%clk 0:00:46.6]} 45. Be3 {[%clk 0:01:14.9]} 45... Ke6 {[%clk 0:00:38.5]} 46.
hxg6 {[%clk 0:01:16.3]} 46... hxg6 {[%clk 0:00:39.5]} 47. Rh3 {[%clk 0:01:17.9]}
47... Ra7 {[%clk 0:00:39.9]} 48. Rh8 {[%clk 0:01:17.3]} 48... Rc7 {[%clk
0:00:27.8]} 49. Rg8 {[%clk 0:01:15]} 49... Kf7 {[%clk 0:00:28.3]} 50. Ra8 {[%clk
0:01:14.7]} 50... Kg7 {[%clk 0:00:27.3]} 51. Ra6 {[%clk 0:01:15.6]} 51... Kf7
{[%clk 0:00:26.6]} 52. Rb6 {[%clk 0:01:16.8]} 52... Rc8 {[%clk 0:00:25.5]} 53.
Rxb5 {[%clk 0:01:17.2]} 53... Rh8 {[%clk 0:00:26.5]} 54. Rb7+ {[%clk 0:01:18.6]}
54... Ke6 {[%clk 0:00:25.9]} 55. Rc7 {[%clk 0:01:18.8]} 55... Rh2+ {[%clk
0:00:26]} 56. Kf1 {[%clk 0:01:18.4]} 56... Ne7 {[%clk 0:00:25.7]} 57. b5 {[%clk
0:01:19.6]} 57... Rh3 {[%clk 0:00:27]} 58. Bf4 {[%clk 0:01:20]} 58... Rf3+
{[%clk 0:00:27.4]} 59. Ke2 {[%clk 0:01:19.9]} 59... Rxf4 {[%clk 0:00:28.3]} 60.
b6 {[%clk 0:01:21.1]} 60... Rf8 {[%clk 0:00:26.7]} 61. c6 {[%clk 0:01:19.4]}
61... Rb8 {[%clk 0:00:26.7]} 62. b7 {[%clk 0:01:20.4]} 62... Kd6 {[%clk
0:00:27.6]} 63. Rd7+ {[%clk 0:01:21.6]} 63... Kxc6 {[%clk 0:00:28.8]} 64. Rxe7
{[%clk 0:01:22.8]} 64... Rxb7 {[%clk 0:00:30.2]} 65. Re6+ {[%clk 0:01:24.1]}
65... Kb5 {[%clk 0:00:31.4]} 66. Ke3 {[%clk 0:01:21.8]} 66... g5 {[%clk
0:00:28.8]} 67. Re5 {[%clk 0:01:19.4]} 67... Kc4 {[%clk 0:00:29.2]} 68. Rxg5
{[%clk 0:01:20.6]} 68... Rb3+ {[%clk 0:00:30.2]} 69. Kf4 {[%clk 0:01:22.1]}
69... Kxd4 {[%clk 0:00:31.4]} 70. Rg8 {[%clk 0:01:21.3]} 70... Rxa3 {[%clk
0:00:32.5]} 71. g5 {[%clk 0:01:21.3]} 71... Rf3+ {[%clk 0:00:33.3]} 72. Kg4
{[%clk 0:01:22.3]} 72... Rf1 {[%clk 0:00:34.2]} 73. Ra8 {[%clk 0:01:22.1]} 73...
Ke3 {[%clk 0:00:33.7]} 74. Rxa4 {[%clk 0:01:21]} 74... d4 {[%clk 0:00:35]} 75.
g6 {[%clk 0:01:20.4]} 75... d3 {[%clk 0:00:35.6]} 76. g7 {[%clk 0:01:18.4]}
76... Rg1+ {[%clk 0:00:36.1]} 77. Kf5 {[%clk 0:01:19.5]} 77... Rxg7 {[%clk
0:00:36.4]} 78. Rxe4+ {[%clk 0:01:20.1]} 78... Kf2 {[%clk 0:00:36.5]} 79. Rd4
{[%clk 0:01:18.4]} 79... Ke2 {[%clk 0:00:37.5]} 80. Re4+ {[%clk 0:01:19.5]}
80... Kd1 {[%clk 0:00:37.4]} 81. Re8 {[%clk 0:01:19.7]} 81... d2 {[%clk
0:00:37.3]} 82. Ke4 {[%clk 0:01:20]} 82... Rc7 {[%clk 0:00:36.3]} 83. Kd3 {[%clk
0:01:00.1]} 83... Kc1 {[%clk 0:00:33.5]} 0-1

[Event "*** Titled Tuesday 3|2 Blitz"]
[Site "Chess.com"]
[Date "2015.11.03"]
[Round "2"]
[White "stepanosinovsky"]
[Black "darsen_sanzhaev"]
[Result "0-1"]
[WhiteElo "2274"]
[BlackElo "2252"]
[TimeControl "180+2"]
[EndTime "11:25:38 PST"]
[Termination "darsen_sanzhaev won by resignation"]

1. e4 {[%clk 0:03:01.9]} 1... c5 {[%clk 0:02:55.3]} 2. Nf3 {[%clk 0:03:02]} 2...
Nc6 {[%clk 0:02:56.9]} 3. Nc3 {[%clk 0:03:02.2]} 3... e6 {[%clk 0:02:48.1]} 4.
Bb5 {[%clk 0:03:01.6]} 4... Nd4 {[%clk 0:02:46]} 5. Nxd4 {[%clk 0:02:56.9]} 5...
cxd4 {[%clk 0:02:47.9]} 6. Nb1 {[%clk 0:02:51.9]} 6... a6 {[%clk 0:02:41.9]} 7.
Be2 {[%clk 0:02:42.1]} 7... d6 {[%clk 0:02:42.5]} 8. O-O {[%clk 0:02:42.7]} 8...
Nf6 {[%clk 0:02:43.7]} 9. d3 {[%clk 0:02:41.6]} 9... Be7 {[%clk 0:02:43.5]} 10.
c3 {[%clk 0:02:42.8]} 10... dxc3 {[%clk 0:02:41.2]} 11. Nxc3 {[%clk 0:02:43.4]}
11... O-O {[%clk 0:02:41.7]} 12. Be3 {[%clk 0:02:43.7]} 12... b5 {[%clk
0:02:37.7]} 13. h3 {[%clk 0:02:34.8]} 13... Bb7 {[%clk 0:02:36.6]} 14. a3 {[%clk
0:02:33.5]} 14... d5 {[%clk 0:02:27.5]} 15. exd5 {[%clk 0:01:23]} 15... Nxd5
{[%clk 0:02:25.2]} 16. Nxd5 {[%clk 0:01:22.8]} 16... Qxd5 {[%clk 0:02:18.5]} 17.
Bf3 {[%clk 0:01:20.6]} 17... Qd7 {[%clk 0:02:20.1]} 18. Bxb7 {[%clk 0:01:18.7]}
18... Qxb7 {[%clk 0:02:22]} 19. Qf3 {[%clk 0:01:19.1]} 19... Qxf3 {[%clk
0:02:22.1]} 20. gxf3 {[%clk 0:01:21]} 20... Rfd8 {[%clk 0:02:23.2]} 21. Rfd1
{[%clk 0:01:21.4]} 21... Bf6 {[%clk 0:02:22.7]} 22. Rd2 {[%clk 0:01:12.2]} 22...
Rac8 {[%clk 0:02:21.9]} 23. Kf1 {[%clk 0:01:12.8]} 23... Rd5 {[%clk 0:02:21.2]}
24. Ke2 {[%clk 0:01:12.5]} 24... g6 {[%clk 0:02:19.7]} 25. Rh1 {[%clk
0:01:03.9]} 25... Rd7 {[%clk 0:02:02.8]} 26. Rb1 {[%clk 0:01:01.4]} 26... Rdc7
{[%clk 0:02:02.6]} 27. Kd1 {[%clk 0:01:00]} 27... Rc6 {[%clk 0:01:51.6]} 28. Ke2
{[%clk 0:01:00.6]} 28... Rc1 {[%clk 0:01:39.8]} 29. Rxc1 {[%clk 0:00:21.2]}
29... Rxc1 {[%clk 0:01:41.7]} 30. d4 {[%clk 0:00:22.5]} 30... Rh1 {[%clk
0:01:27.3]} 31. d5 {[%clk 0:00:14]} 31... exd5 {[%clk 0:01:21.9]} 32. Rxd5
{[%clk 0:00:14.8]} 32... Rxh3 {[%clk 0:01:09.8]} 33. Rd6 {[%clk 0:00:14.7]}
33... Bxb2 {[%clk 0:01:10.2]} 34. Rxa6 {[%clk 0:00:15.6]} 34... Rh4 {[%clk
0:01:05.6]} 35. Ra5 {[%clk 0:00:11.4]} 35... Kg7 {[%clk 0:00:43.9]} 36. Rxb5
{[%clk 0:00:11.2]} 36... Bxa3 {[%clk 0:00:45.1]} 37. f4 {[%clk 0:00:11.8]} 37...
Be7 {[%clk 0:00:39.1]} 38. Rb7 {[%clk 0:00:09.9]} 38... Bf6 {[%clk 0:00:38.1]}
39. Kf3 {[%clk 0:00:11.4]} 39... Rh1 {[%clk 0:00:37.1]} 40. Rb8 {[%clk
0:00:12.1]} 40... h5 {[%clk 0:00:26.5]} 41. Bc5 {[%clk 0:00:12.9]} 41... Rc1
{[%clk 0:00:24.9]} 42. Bf8+ {[%clk 0:00:12.9]} 42... Kh7 {[%clk 0:00:26.5]} 43.
Rb7 {[%clk 0:00:12.6]} 43... Kg8 {[%clk 0:00:22.2]} 44. Rb8 {[%clk 0:00:12.5]}
44... Rc3+ {[%clk 0:00:14.2]} 45. Kg2 {[%clk 0:00:13]} 45... Rc2 {[%clk
0:00:10.9]} 46. Bc5+ {[%clk 0:00:08.1]} 46... Kg7 {[%clk 0:00:10.5]} 47. Be3
{[%clk 0:00:08.7]} 47... Rb2 {[%clk 0:00:09.2]} 48. Ra8 {[%clk 0:00:08.7]} 48...
Rb4 {[%clk 0:00:09.9]} 49. Ra7 {[%clk 0:00:07.5]} 49... Bd4 {[%clk 0:00:10]} 50.
Rd7 {[%clk 0:00:07.1]} 50... Bxe3 {[%clk 0:00:08.8]} 51. fxe3 {[%clk 0:00:09]}
51... Kf6 {[%clk 0:00:08.3]} 52. Kf3 {[%clk 0:00:09.9]} 52... Rb6 {[%clk
0:00:08.4]} 53. Rd5 {[%clk 0:00:10]} 53... Ke6 {[%clk 0:00:09]} 54. Re5+ {[%clk
0:00:10.7]} 54... Kf6 {[%clk 0:00:10.7]} 55. Ra5 {[%clk 0:00:11.8]} 55... Rd6
{[%clk 0:00:10.7]} 56. Rb5 {[%clk 0:00:12.6]} 56... Ke7 {[%clk 0:00:10.7]} 57.
Rb7+ {[%clk 0:00:12.9]} 57... Ke6 {[%clk 0:00:12.1]} 58. Rb5 {[%clk 0:00:13.9]}
58... Rd1 {[%clk 0:00:13]} 59. Rb6+ {[%clk 0:00:13.4]} 59... Ke7 {[%clk
0:00:11.8]} 60. Rb7+ {[%clk 0:00:14.5]} 60... Kf6 {[%clk 0:00:13.3]} 61. Rb6+
{[%clk 0:00:15.3]} 61... Kg7 {[%clk 0:00:15]} 62. Rb7 {[%clk 0:00:16.2]} 62...
Rd6 {[%clk 0:00:12.3]} 63. Ra7 {[%clk 0:00:16.5]} 63... Re6 {[%clk 0:00:12.4]}
64. Ra5 {[%clk 0:00:16.9]} 64... Kf6 {[%clk 0:00:12]} 65. Ra7 {[%clk 0:00:17.5]}
65... Re7 {[%clk 0:00:13.2]} 66. Ra6+ {[%clk 0:00:18.4]} 66... Kg7 {[%clk
0:00:14.8]} 67. Ra5 {[%clk 0:00:19.3]} 67... f6 {[%clk 0:00:16.2]} 68. Rb5
{[%clk 0:00:19.1]} 68... Kh6 {[%clk 0:00:14.3]} 69. Rb6 {[%clk 0:00:19.2]} 69...
Rf7 {[%clk 0:00:15.8]} 70. Kg3 {[%clk 0:00:18.6]} 70... Kg7 {[%clk 0:00:16.3]}
71. Rb5 {[%clk 0:00:17.5]} 71... Ra7 {[%clk 0:00:16.8]} 72. Kf3 {[%clk 0:00:18]}
72... Ra6 {[%clk 0:00:16.5]} 73. Rb8 {[%clk 0:00:13.2]} 73... g5 {[%clk
0:00:12.6]} 74. Rb5 {[%clk 0:00:13.6]} 74... Kg6 {[%clk 0:00:12.4]} 75. Kg3
{[%clk 0:00:14.3]} 75... Re6 {[%clk 0:00:12.7]} 76. Kf3 {[%clk 0:00:14.3]} 76...
g4+ {[%clk 0:00:06.7]} 77. Kf2 {[%clk 0:00:14.7]} 77... Re4 {[%clk 0:00:08.2]}
78. Rb8 {[%clk 0:00:13.4]} 78... h4 {[%clk 0:00:06.6]} 79. Rh8 {[%clk
0:00:13.5]} 79... h3 {[%clk 0:00:07.4]} 80. Rg8+ {[%clk 0:00:10.4]} 80... Kf5
{[%clk 0:00:06.2]} 81. Rh8 {[%clk 0:00:12]} 81... Rb4 {[%clk 0:00:04.9]} 82.
Rh5+ {[%clk 0:00:12.5]} 82... Kg6 {[%clk 0:00:06.2]} 83. Rh8 {[%clk 0:00:13.3]}
83... Rb2+ {[%clk 0:00:07.2]} 84. Kg3 {[%clk 0:00:14.6]} 84... Rg2+ {[%clk
0:00:07.6]} 85. Kh4 {[%clk 0:00:12.6]} 85... h2 {[%clk 0:00:08.3]} 86. f5+
{[%clk 0:00:11.7]} 86... Kxf5 {[%clk 0:00:07.4]} 87. e4+ {[%clk 0:00:12.4]}
87... Kf4 {[%clk 0:00:07.8]} 0-1

[Event "*** Titled Tuesday 3|2 Blitz"]
[Site "Chess.com"]
[Date "2015.11.03"]
[Round "3"]
[White "NMJeevanK"]
[Black "xdb"]
[Result "1-0"]
[WhiteElo "2234"]
[BlackElo "2085"]
[TimeControl "180+2"]
[EndTime "11:30:52 PST"]
[Termination "NMJeevanK won by resignation"]

1. e4 {[%clk 0:03:01.9]} 1... c5 {[%clk 0:02:59]} 2. Nf3 {[%clk 0:03:00.4]} 2...
e6 {[%clk 0:03:00.4]} 3. d4 {[%clk 0:03:01.5]} 3... cxd4 {[%clk 0:03:02.3]} 4.
Nxd4 {[%clk 0:03:03.4]} 4... a6 {[%clk 0:03:03.4]} 5. Bd3 {[%clk 0:03:04.5]}
5... Bc5 {[%clk 0:03:04.6]} 6. Nb3 {[%clk 0:03:05.4]} 6... Be7 {[%clk
0:03:06.1]} 7. c4 {[%clk 0:03:07.3]} 7... d6 {[%clk 0:03:04.5]} 8. Nc3 {[%clk
0:03:07]} 8... Nf6 {[%clk 0:03:05.6]} 9. O-O {[%clk 0:03:08.1]} 9... Qc7 {[%clk
0:03:03]} 10. Kh1 {[%clk 0:03:09.3]} 10... b6 {[%clk 0:03:02.1]} 11. Be3 {[%clk
0:03:09.9]} 11... Bb7 {[%clk 0:03:02.7]} 12. Nd2 {[%clk 0:03:09.4]} 12... Nbd7
{[%clk 0:03:02]} 13. f4 {[%clk 0:03:06.8]} 13... Nc5 {[%clk 0:03:01.9]} 14. Bxc5
{[%clk 0:03:07.7]} 14... Qxc5 {[%clk 0:02:49.4]} 15. Qe2 {[%clk 0:02:53.6]}
15... h5 {[%clk 0:02:48.5]} 16. e5 {[%clk 0:02:43.8]} 16... dxe5 {[%clk
0:02:43.1]} 17. Nde4 {[%clk 0:02:43.9]} 17... Qc7 {[%clk 0:02:35.8]} 18. f5
{[%clk 0:02:25.8]} 18... O-O-O {[%clk 0:02:30]} 19. fxe6 {[%clk 0:02:21.5]}
19... fxe6 {[%clk 0:02:31.9]} 20. c5 {[%clk 0:02:17.3]} 20... b5 {[%clk
0:02:05.7]} 21. b4 {[%clk 0:02:13.6]} 21... Rd4 {[%clk 0:02:05]} 22. a4 {[%clk
0:02:07]} 22... Rhd8 {[%clk 0:02:04.4]} 23. Nxf6 {[%clk 0:02:00.7]} 23... Rxd3
{[%clk 0:02:00.2]} 24. Nfe4 {[%clk 0:01:57.7]} 24... bxa4 {[%clk 0:01:51.7]} 25.
b5 {[%clk 0:01:54.3]} 25... axb5 {[%clk 0:01:47.5]} 26. Nxb5 {[%clk 0:01:54.9]}
26... Qc6 {[%clk 0:01:36.9]} 27. Na7+ {[%clk 0:01:55.4]} 1-0

[Event "*** Titled Tuesday 3|2 Blitz"]
[Site "Chess.com"]
[Date "2015.11.03"]
[Round "3"]
[White "SenseiJulio"]
[Black "manubibi"]
[Result "1-0"]
[WhiteElo "2650"]
[BlackElo "2442"]
[TimeControl "180+2"]
[EndTime "11:31:33 PST"]
[Termination "SenseiJulio won by resignation"]

1. d4 {[%clk 0:03:01.9]} 1... Nf6 {[%clk 0:02:59.9]} 2. c4 {[%clk 0:03:02.6]}
2... g6 {[%clk 0:03:01.1]} 3. Nc3 {[%clk 0:03:03.4]} 3... Bg7 {[%clk 0:03:02.4]}
4. e4 {[%clk 0:03:04]} 4... d6 {[%clk 0:03:03.8]} 5. h3 {[%clk 0:03:05.4]} 5...
O-O {[%clk 0:03:04.8]} 6. Be3 {[%clk 0:03:06.5]} 6... e5 {[%clk 0:02:47.9]} 7.
d5 {[%clk 0:03:05.8]} 7... Nh5 {[%clk 0:02:48.9]} 8. Be2 {[%clk 0:03:01]} 8...
Nf4 {[%clk 0:02:49.2]} 9. Bf3 {[%clk 0:03:00.1]} 9... f5 {[%clk 0:02:27.9]} 10.
g3 {[%clk 0:02:59.8]} 10... Nh5 {[%clk 0:02:29]} 11. exf5 {[%clk 0:02:55.1]}
11... e4 {[%clk 0:01:39.1]} 12. Bxe4 {[%clk 0:02:28.1]} 12... gxf5 {[%clk
0:01:39]} 13. Bc2 {[%clk 0:01:39.8]} 13... Qe8 {[%clk 0:01:27.4]} 14. Qd2 {[%clk
0:01:23.4]} 14... Bh6 {[%clk 0:00:57.3]} 15. Nge2 {[%clk 0:01:18]} 15... Na6
{[%clk 0:00:43.6]} 16. Bxh6 {[%clk 0:01:16.5]} 1-0

[Event "*** Titled Tuesday 3|2 Blitz"]
[Site "Chess.com"]
[Date "2015.11.03"]
[Round "3"]
[White "Blitzstream"]
[Black "Saitama_Hero"]
[Result "1-0"]
[WhiteElo "2399"]
[BlackElo "2155"]
[TimeControl "180+2"]
[EndTime "11:31:44 PST"]
[Termination "Blitzstream won by checkmate"]

1. d4 {[%clk 0:03:01.9]} 1... Nf6 {[%clk 0:03:01.1]} 2. Bg5 {[%clk 0:03:02.9]}
2... Ne4 {[%clk 0:02:59.5]} 3. Bh4 {[%clk 0:03:04]} 3... g5 {[%clk 0:03:00.5]}
4. f3 {[%clk 0:03:05.1]} 4... gxh4 {[%clk 0:03:02.2]} 5. fxe4 {[%clk 0:03:07]}
5... c5 {[%clk 0:03:04.1]} 6. e3 {[%clk 0:03:08.3]} 6... Bh6 {[%clk 0:03:05.8]}
7. Bc4 {[%clk 0:03:08.5]} 7... d5 {[%clk 0:03:01.7]} 8. exd5 {[%clk 0:03:02.5]}
8... Bxe3 {[%clk 0:03:00.1]} 9. Nf3 {[%clk 0:03:01.2]} 9... h3 {[%clk
0:02:54.7]} 10. gxh3 {[%clk 0:02:58.4]} 10... cxd4 {[%clk 0:02:36.7]} 11. Nbd2
{[%clk 0:02:25.5]} 11... Bxh3 {[%clk 0:02:28.5]} 12. Qe2 {[%clk 0:02:26.4]}
12... Rg8 {[%clk 0:02:14.4]} 13. O-O-O {[%clk 0:02:27.1]} 13... Rg2 {[%clk
0:02:15.9]} 14. Qd3 {[%clk 0:02:28]} 14... f5 {[%clk 0:01:50.8]} 15. Nxd4 {[%clk
0:02:21.1]} 15... f4 {[%clk 0:01:44]} 16. Qxh7 {[%clk 0:01:57.1]} 16... Bg4
{[%clk 0:01:43.3]} 17. Bb5+ {[%clk 0:01:02]} 17... Kf8 {[%clk 0:01:43.2]} 18.
Qh8+ {[%clk 0:01:00.4]} 18... Kf7 {[%clk 0:01:41.5]} 19. Qxd8 {[%clk 0:00:59.8]}
19... Nc6 {[%clk 0:01:41.4]} 20. Qxa8 {[%clk 0:00:53.9]} 20... Nxd4 {[%clk
0:01:42.8]} 21. Qe8+ {[%clk 0:00:54.1]} 21... Kf6 {[%clk 0:01:41.5]} 22. Qf8+
{[%clk 0:00:55.3]} 22... Kg5 {[%clk 0:01:40.8]} 23. Qxe7+ {[%clk 0:00:53.5]}
23... Kh6 {[%clk 0:01:42.4]} 24. Qf6+ {[%clk 0:00:52.1]} 24... Kh5 {[%clk
0:01:42.5]} 25. Be8# {[%clk 0:00:51.7]} 1-0

[Event "*** Titled Tuesday 3|2 Blitz"]
[Site "Chess.com"]
[Date "2015.11.03"]
[Round "3"]
[White "Canonkasparov"]
[Black "Moltini"]
[Result "1-0"]
[WhiteElo "2369"]
[BlackElo "2206"]
[TimeControl "180+2"]
[EndTime "11:31:55 PST"]
[Termination "Canonkasparov won by checkmate"]

1. d4 {[%clk 0:03:00.7]} 1... Nf6 {[%clk 0:02:58]} 2. Nf3 {[%clk 0:03:01]} 2...
g6 {[%clk 0:02:58.8]} 3. Bg5 {[%clk 0:02:57.4]} 3... Bg7 {[%clk 0:02:59.8]} 4.
c3 {[%clk 0:02:56.4]} 4... O-O {[%clk 0:02:59.9]} 5. Nbd2 {[%clk 0:02:56.5]}
5... b6 {[%clk 0:03:01.1]} 6. e3 {[%clk 0:02:56.2]} 6... Bb7 {[%clk 0:03:02.3]}
7. Bc4 {[%clk 0:02:56.1]} 7... d5 {[%clk 0:02:58.8]} 8. Be2 {[%clk 0:02:55.8]}
8... c5 {[%clk 0:03:00]} 9. a4 {[%clk 0:02:55.6]} 9... Nbd7 {[%clk 0:03:00.5]}
10. O-O {[%clk 0:02:55.6]} 10... Re8 {[%clk 0:03:00.8]} 11. Bf4 {[%clk
0:02:46.3]} 11... Nh5 {[%clk 0:03:00.1]} 12. Ne5 {[%clk 0:02:42]} 12... Nxf4
{[%clk 0:02:59.6]} 13. exf4 {[%clk 0:02:42.4]} 13... f6 {[%clk 0:02:58.3]} 14.
Nxd7 {[%clk 0:02:38.1]} 14... Qxd7 {[%clk 0:02:58.6]} 15. Bb5 {[%clk 0:02:38.3]}
15... Bc6 {[%clk 0:02:59.3]} 16. Bxc6 {[%clk 0:02:36]} 16... Qxc6 {[%clk
0:03:00.5]} 17. Nf3 {[%clk 0:02:37]} 17... Qd6 {[%clk 0:03:01.3]} 18. g3 {[%clk
0:02:37]} 18... Rad8 {[%clk 0:02:57.3]} 19. Re1 {[%clk 0:02:37.4]} 19... e5
{[%clk 0:02:53.6]} 20. fxe5 {[%clk 0:02:37.2]} 20... fxe5 {[%clk 0:02:54.8]} 21.
dxe5 {[%clk 0:02:38]} 21... Bxe5 {[%clk 0:02:55.8]} 22. Qe2 {[%clk 0:02:34.2]}
22... Bxc3 {[%clk 0:02:48.6]} 23. Qxe8+ {[%clk 0:02:33.8]} 23... Rxe8 {[%clk
0:02:49.4]} 24. Rxe8+ {[%clk 0:02:34.4]} 24... Kf7 {[%clk 0:02:50.7]} 25. Ra8
{[%clk 0:02:27.3]} 25... Ba5 {[%clk 0:02:48.7]} 26. Ng5+ {[%clk 0:02:22.4]}
26... Kf6 {[%clk 0:02:43.8]} 27. Nxh7+ {[%clk 0:02:16.4]} 27... Kf5 {[%clk
0:02:44.8]} 28. Rf8+ {[%clk 0:02:13.1]} 28... Ke4 {[%clk 0:02:45.8]} 29. Rd1
{[%clk 0:02:06.5]} 29... d4 {[%clk 0:02:42.8]} 30. Nf6+ {[%clk 0:01:49.3]} 30...
Kf3 {[%clk 0:02:19]} 31. Kf1 {[%clk 0:01:40.4]} 31... c4 {[%clk 0:02:11.1]} 32.
Rf7 {[%clk 0:01:39.2]} 32... Qe6 {[%clk 0:02:06.5]} 33. Nh7+ {[%clk 0:01:25.7]}
33... Kg4 {[%clk 0:01:49.4]} 34. Rxd4+ {[%clk 0:01:18.4]} 34... Kh5 {[%clk
0:01:46.8]} 35. Rh4# {[%clk 0:01:15.3]} 1-0

[Event "*** Titled Tuesday 3|2 Blitz"]
[Site "Chess.com"]
[Date "2015.11.03"]
[Round "3"]
[White "BjarkeSahl"]
[Black "Rickstereo"]
[Result "1-0"]
[WhiteElo "2167"]
[BlackElo "2089"]
[TimeControl "180+2"]
[EndTime "11:32:07 PST"]
[Termination "BjarkeSahl won by resignation"]

1. e4 {[%clk 0:02:51.9]} 1... c5 {[%clk 0:02:58.8]} 2. Nf3 {[%clk 0:02:52.1]}
2... Nc6 {[%clk 0:02:59.8]} 3. d4 {[%clk 0:02:53.6]} 3... cxd4 {[%clk 0:03:01]}
4. Nxd4 {[%clk 0:02:55.2]} 4... Nf6 {[%clk 0:03:02.6]} 5. Nc3 {[%clk 0:02:56.2]}
5... e5 {[%clk 0:03:03.6]} 6. Nxc6 {[%clk 0:02:55.6]} 6... bxc6 {[%clk
0:03:04.1]} 7. f4 {[%clk 0:02:56.6]} 7... Bb4 {[%clk 0:02:56]} 8. fxe5 {[%clk
0:02:55.7]} 8... Nxe4 {[%clk 0:02:57.1]} 9. Qd4 {[%clk 0:02:56.7]} 9... Qa5
{[%clk 0:02:41]} 10. Qxe4 {[%clk 0:02:56.7]} 10... Bxc3+ {[%clk 0:02:41.4]} 11.
bxc3 {[%clk 0:02:58.3]} 11... Qxc3+ {[%clk 0:02:42.3]} 12. Kf2 {[%clk
0:02:59.9]} 12... Qxa1 {[%clk 0:02:42.6]} 13. Ba3 {[%clk 0:02:59.8]} 13... Qc3
{[%clk 0:01:31.6]} 14. Bb4 {[%clk 0:02:37.1]} 14... Qb2 {[%clk 0:01:29.4]} 15.
Bd6 {[%clk 0:02:33.2]} 15... Qb6+ {[%clk 0:01:26.3]} 16. Kg3 {[%clk 0:02:27.8]}
16... h5 {[%clk 0:01:01.4]} 17. Bc4 {[%clk 0:02:24.8]} 17... h4+ {[%clk
0:01:01]} 18. Kh3 {[%clk 0:02:19.8]} 18... Ba6 {[%clk 0:00:54.2]} 19. Rf1 {[%clk
0:01:54.9]} 19... Bxc4 {[%clk 0:00:47.3]} 20. Qxc4 {[%clk 0:01:55]} 20... O-O-O
{[%clk 0:00:30.7]} 21. Rf3 {[%clk 0:01:51.5]} 21... Rh6 {[%clk 0:00:17.9]} 22.
Rb3 {[%clk 0:01:51.3]} 1-0